[Event "Titled Tuesday Blitz November 14 Early 2023"]
[White "Skaric, Djuro"]
[Black "Wahlund, Max"]
[WhiteFideId "934569"]
[BlackFideId "1741861"]
[WhiteElo "2368"]
[BlackElo "2159"]
[Result "1-0"]
[Round "8"]
[TimeControl "180+1"]
[Date "2023.11.14"]
[WhiteClock "0:00:19"]
[BlackClock "0:00:23"]
[Board "143"]

1. g3 {[%clk 0:03:00]}  Nf6 {[%clk 0:02:58]} 2. Bg2 {[%clk 0:03:01]}  g6 {[%clk 0:02:58]} 3. d3 {[%clk 0:03:01]}  Bg7 {[%clk 0:02:59]} 4. Nf3 {[%clk 0:03:01]}  O-O {[%clk 0:03:00]} 5. O-O {[%clk 0:03:02]}  c5 {[%clk 0:02:59]} 6. h3 {[%clk 0:03:03]}  Nc6 {[%clk 0:02:59]} 7. Nc3 {[%clk 0:03:03]}  d6 {[%clk 0:02:59]} 8. e4 {[%clk 0:03:03]}  e5 {[%clk 0:02:58]} 9. Ne1 {[%clk 0:03:03]}  Nh5 {[%clk 0:02:52]} 10. Ne2 {[%clk 0:03:02]}  f5 {[%clk 0:02:50]} 11. f4 {[%clk 0:03:02]}  Nd4 {[%clk 0:02:44]} 12. Nxd4 {[%clk 0:02:50]}  cxd4 {[%clk 0:02:45]} 13. exf5 {[%clk 0:02:41]}  Nxg3 {[%clk 0:02:45]} 14. Bd5+ {[%clk 0:02:37]}  Kh8 {[%clk 0:02:42]} 15. fxg6 {[%clk 0:02:35]}  Qh4 {[%clk 0:02:37]} 16. Rf2 {[%clk 0:02:35]}  Bxh3 {[%clk 0:02:29]} 17. Qf3 {[%clk 0:02:16]}  exf4 {[%clk 0:02:15]} 18. Ng2 {[%clk 0:02:09]}  Bxg2 {[%clk 0:02:11]} 19. Qxg2 {[%clk 0:02:09]}  Rae8 {[%clk 0:01:58]} 20. Bd2 {[%clk 0:02:08]}  Qh5 {[%clk 0:01:39]} 21. Re1 {[%clk 0:01:31]}  Be5 {[%clk 0:01:29]} 22. gxh7 {[%clk 0:00:58]}  Kxh7 {[%clk 0:01:23]} 23. Qh2 {[%clk 0:00:58]}  Qxh2+ {[%clk 0:01:13]} 24. Rxh2+ {[%clk 0:00:58]}  Kg7 {[%clk 0:01:10]} 25. Kf2 {[%clk 0:00:55]}  Rh8 {[%clk 0:01:05]} 26. Rg2 {[%clk 0:00:55]}  Kf6 {[%clk 0:00:57]} 27. b3 {[%clk 0:00:55]}  Nf5 {[%clk 0:00:38]} 28. Reg1 {[%clk 0:00:50]}  Rh6 {[%clk 0:00:36]} 29. a4 {[%clk 0:00:40]}  Reh8 {[%clk 0:00:36]} 30. Rg4 {[%clk 0:00:22]}  Rh2+ {[%clk 0:00:35]} 31. Ke1 {[%clk 0:00:20]}  Ne3 {[%clk 0:00:29]} 32. Rg7 {[%clk 0:00:19]}  R8h6 {[%clk 0:00:23]} 33. Rf7# {[%clk 0:00:19]} 1-0


[Site "https://www.chess.com"]

[Event "Titled Tuesday Blitz November 14 Early 2023"]
[White "Tuleyeva-Aketayeva, Dana"]
[Black "Arngrimsson, Dagur"]
[WhiteFideId "13701932"]
[BlackFideId "2301288"]
[WhiteElo "2304"]
[BlackElo "2507"]
[Result "0-1"]
[Round "8"]
[TimeControl "180+1"]
[Date "2023.11.14"]
[WhiteClock "0:00:14"]
[BlackClock "0:01:23"]
[Board "147"]

1. d4 {[%clk 0:03:00]}  d5 {[%clk 0:03:00]} 2. Nf3 {[%clk 0:03:01]}  Nf6 {[%clk 0:03:00]} 3. g3 {[%clk 0:03:01]}  Bf5 {[%clk 0:02:58]} 4. Bg2 {[%clk 0:03:01]}  e6 {[%clk 0:02:58]} 5. c4 {[%clk 0:02:57]}  Be7 {[%clk 0:02:56]} 6. Nc3 {[%clk 0:02:56]}  O-O {[%clk 0:02:56]} 7. Nd2 {[%clk 0:02:50]}  Nc6 {[%clk 0:02:51]} 8. cxd5 {[%clk 0:02:43]}  Nxd4 {[%clk 0:02:50]} 9. e4 {[%clk 0:02:24]}  Bg4 {[%clk 0:02:46]} 10. f3 {[%clk 0:02:24]}  Bh5 {[%clk 0:02:39]} 11. dxe6 {[%clk 0:02:07]}  Bc5 {[%clk 0:02:34]} 12. exf7+ {[%clk 0:02:02]}  Bxf7 {[%clk 0:02:35]} 13. Na4 {[%clk 0:01:49]}  Qe7 {[%clk 0:02:35]} 14. a3 {[%clk 0:01:21]}  Rad8 {[%clk 0:02:19]} 15. O-O {[%clk 0:00:53]}  Nb3+ {[%clk 0:01:58]} 16. Kh1 {[%clk 0:00:48]}  Nxa1 {[%clk 0:01:58]} 17. b4 {[%clk 0:00:44]}  Bb3 {[%clk 0:01:53]} 18. Qe1 {[%clk 0:00:41]}  Bxa4 {[%clk 0:01:52]} 19. bxc5 {[%clk 0:00:38]}  Nb3 {[%clk 0:01:49]} 20. Nxb3 {[%clk 0:00:33]}  Bxb3 {[%clk 0:01:50]} 21. Qb4 {[%clk 0:00:28]}  Qe6 {[%clk 0:01:38]} 22. Bf4 {[%clk 0:00:27]}  Rd1 {[%clk 0:01:27]} 23. Qxb7 {[%clk 0:00:19]}  Rxf1+ {[%clk 0:01:18]} 24. Bxf1 {[%clk 0:00:19]}  Nh5 {[%clk 0:01:10]} 25. Qxc7 {[%clk 0:00:13]}  Nxf4 {[%clk 0:01:09]} 26. gxf4 {[%clk 0:00:13]}  Bc4 {[%clk 0:01:02]} 27. Qe5 {[%clk 0:00:09]}  Qf7 {[%clk 0:00:54]} 28. Bxc4 {[%clk 0:00:07]}  Qxc4 {[%clk 0:00:55]} 29. Qd5+ {[%clk 0:00:07]}  Qxd5 {[%clk 0:00:55]} 30. exd5 {[%clk 0:00:08]}  Rf5 {[%clk 0:00:53]} 31. d6 {[%clk 0:00:06]}  Rxc5 {[%clk 0:00:53]} 32. d7 {[%clk 0:00:06]}  Rd5 {[%clk 0:00:53]} 33. Kg2 {[%clk 0:00:06]}  Rxd7 {[%clk 0:00:54]} 34. Kg3 {[%clk 0:00:05]}  Rd2 {[%clk 0:00:54]} 35. Kg4 {[%clk 0:00:06]}  Rd3 {[%clk 0:00:55]} 36. Kf5 {[%clk 0:00:06]}  Rxf3 {[%clk 0:00:55]} 37. a4 {[%clk 0:00:05]}  Ra3 {[%clk 0:00:56]} 38. Ke6 {[%clk 0:00:05]}  Rxa4 {[%clk 0:00:57]} 39. f5 {[%clk 0:00:06]}  Rh4 {[%clk 0:00:58]} 40. f6 {[%clk 0:00:05]}  Rh6 {[%clk 0:00:58]} 41. Ke7 {[%clk 0:00:05]}  Rxf6 {[%clk 0:00:59]} 42. h4 {[%clk 0:00:05]}  h5 {[%clk 0:01:00]} 43. Ke8 {[%clk 0:00:05]}  Rf4 {[%clk 0:01:01]} 44. Ke7 {[%clk 0:00:05]}  Rxh4 {[%clk 0:01:02]} 45. Ke8 {[%clk 0:00:06]}  Rg4 {[%clk 0:01:03]} 46. Ke7 {[%clk 0:00:06]}  Kh7 {[%clk 0:01:04]} 47. Ke8 {[%clk 0:00:07]}  Kh6 {[%clk 0:01:05]} 48. Kf7 {[%clk 0:00:08]}  g6 {[%clk 0:01:05]} 49. Kg8 {[%clk 0:00:09]}  h4 {[%clk 0:01:06]} 50. Kh8 {[%clk 0:00:09]}  Kh5 {[%clk 0:01:07]} 51. Kg8 {[%clk 0:00:10]}  g5 {[%clk 0:01:08]} 52. Kh7 {[%clk 0:00:10]}  Rf4 {[%clk 0:01:09]} 53. Kg7 {[%clk 0:00:11]}  h3 {[%clk 0:01:10]} 54. Kh7 {[%clk 0:00:11]}  g4 {[%clk 0:01:11]} 55. Kg7 {[%clk 0:00:11]}  Rf3 {[%clk 0:01:12]} 56. Kh7 {[%clk 0:00:11]}  Kh4 {[%clk 0:01:13]} 57. Kg6 {[%clk 0:00:12]}  h2 {[%clk 0:01:14]} 58. Kh6 {[%clk 0:00:12]}  g3 {[%clk 0:01:14]} 59. Kg6 {[%clk 0:00:12]}  Rf2 {[%clk 0:01:15]} 60. Kh6 {[%clk 0:00:12]}  Kg4 {[%clk 0:01:16]} 61. Kg6 {[%clk 0:00:13]}  Rf3 {[%clk 0:01:17]} 62. Kh6 {[%clk 0:00:13]}  Rf5 {[%clk 0:01:18]} 63. Kg6 {[%clk 0:00:13]}  g2 {[%clk 0:01:19]} 64. Kh6 {[%clk 0:00:13]}  Rf3 {[%clk 0:01:20]} 65. Kg6 {[%clk 0:00:14]}  Kg3 {[%clk 0:01:21]} 66. Kg5 {[%clk 0:00:14]}  g1=Q {[%clk 0:01:22]} 67. Kh5 {[%clk 0:00:14]}  h1=Q+ {[%clk 0:01:23]} 68. Kg5 {[%clk 0:00:14]}  Kf2# {[%clk 0:01:23]} 0-1


[Site "https://www.chess.com"]

[Event "Titled Tuesday Blitz November 14 Early 2023"]
[White "Pumpkin_in_moonlight"]
[Black "Shubenkova, Veronika"]
[BlackFideId "44124040"]
[WhiteElo "2302"]
[BlackElo "2501"]
[Result "0-1"]
[Round "8"]
[TimeControl "180+1"]
[Date "2023.11.14"]
[WhiteClock "0:00:00"]
[BlackClock "0:01:26"]
[Board "148"]

1. e4 {[%clk 0:03:00]}  c5 {[%clk 0:02:59]} 2. Nf3 {[%clk 0:02:59]}  e6 {[%clk 0:02:59]} 3. b3 {[%clk 0:02:53]}  Nc6 {[%clk 0:02:59]} 4. Bb2 {[%clk 0:02:52]}  Nf6 {[%clk 0:02:59]} 5. e5 {[%clk 0:02:28]}  Nd5 {[%clk 0:02:58]} 6. Bb5 {[%clk 0:02:21]}  Be7 {[%clk 0:02:49]} 7. Bxc6 {[%clk 0:02:13]}  dxc6 {[%clk 0:02:49]} 8. O-O {[%clk 0:02:08]}  O-O {[%clk 0:02:48]} 9. d3 {[%clk 0:02:01]}  b5 {[%clk 0:02:47]} 10. Nbd2 {[%clk 0:01:59]}  a5 {[%clk 0:02:47]} 11. a4 {[%clk 0:01:57]}  Ba6 {[%clk 0:02:46]} 12. Ne4 {[%clk 0:01:54]}  Qb6 {[%clk 0:02:45]} 13. Qe2 {[%clk 0:01:36]}  c4 {[%clk 0:02:41]} 14. bxc4 {[%clk 0:01:01]}  bxc4 {[%clk 0:02:40]} 15. Rfb1 {[%clk 0:01:01]}  cxd3 {[%clk 0:02:39]} 16. cxd3 {[%clk 0:01:01]}  Nf4 {[%clk 0:02:39]} 17. Qd2 {[%clk 0:00:54]}  Nxd3 {[%clk 0:02:34]} 18. Ba3 {[%clk 0:00:40]}  Bb4 {[%clk 0:02:34]} 19. Bxb4 {[%clk 0:00:37]}  axb4 {[%clk 0:02:32]} 20. a5 {[%clk 0:00:34]}  Qa7 {[%clk 0:02:23]} 21. Qg5 {[%clk 0:00:29]}  Kh8 {[%clk 0:02:23]} 22. Ra2 {[%clk 0:00:10]}  c5 {[%clk 0:02:13]} 23. Qh4 {[%clk 0:00:07]}  c4 {[%clk 0:02:09]} 24. Nfg5 {[%clk 0:00:07]}  h6 {[%clk 0:02:08]} 25. Nf3 {[%clk 0:00:03]}  c3 {[%clk 0:02:05]} 26. g4 {[%clk 0:00:03]}  Bc4 {[%clk 0:01:45]} 27. Rc2 {[%clk 0:00:03]}  Bd5 {[%clk 0:01:43]} 28. Ng3 {[%clk 0:00:01]}  Bxf3 {[%clk 0:01:41]} 29. g5 {[%clk 0:00:01]}  h5 {[%clk 0:01:38]} 30. Nxh5 {[%clk 0:00:01]}  Bxh5 {[%clk 0:01:37]} 31. Qxh5+ {[%clk 0:00:01]}  Kg8 {[%clk 0:01:38]} 32. g6 {[%clk 0:00:01]}  fxg6 {[%clk 0:01:38]} 33. Qxg6 {[%clk 0:00:01]}  Rxf2 {[%clk 0:01:34]} 34. Qxe6+ {[%clk 0:00:02]}  Rf7+ {[%clk 0:01:34]} 35. Kg2 {[%clk 0:00:01]}  Qb7+ {[%clk 0:01:32]} 36. Kg1 {[%clk 0:00:01]}  Qe4 {[%clk 0:01:28]} 37. Rf1 {[%clk 0:00:00]}  Ra7 {[%clk 0:01:26]} 0-1


[Site "https://www.chess.com"]

[Event "Titled Tuesday Blitz November 14 Early 2023"]
[White "Buscar, Michael"]
[Black "Grossboss19"]
[WhiteFideId "2603616"]
[WhiteElo "2288"]
[BlackElo "2488"]
[Result "1-0"]
[Round "8"]
[TimeControl "180+1"]
[Date "2023.11.14"]
[WhiteClock "0:00:05"]
[BlackClock "0:00:00"]
[Board "149"]

1. d4 {[%clk 0:02:40]}  d5 {[%clk 0:02:56]} 2. c4 {[%clk 0:02:40]}  e6 {[%clk 0:02:48]} 3. Nc3 {[%clk 0:02:39]}  Ne7 {[%clk 0:02:48]} 4. cxd5 {[%clk 0:02:39]}  exd5 {[%clk 0:02:42]} 5. Bg5 {[%clk 0:02:34]}  c6 {[%clk 0:02:41]} 6. e3 {[%clk 0:02:34]}  Bf5 {[%clk 0:02:34]} 7. Bd3 {[%clk 0:02:33]}  Bxd3 {[%clk 0:02:27]} 8. Qxd3 {[%clk 0:02:34]}  h6 {[%clk 0:02:27]} 9. Bh4 {[%clk 0:02:34]}  Qd7 {[%clk 0:02:26]} 10. Nf3 {[%clk 0:02:31]}  Ng6 {[%clk 0:02:23]} 11. Bg3 {[%clk 0:02:26]}  Bd6 {[%clk 0:02:20]} 12. Ne5 {[%clk 0:02:14]}  Bxe5 {[%clk 0:02:13]} 13. dxe5 {[%clk 0:02:13]}  O-O {[%clk 0:02:13]} 14. f4 {[%clk 0:02:09]}  Ne7 {[%clk 0:02:09]} 15. O-O-O {[%clk 0:02:05]}  Qf5 {[%clk 0:02:08]} 16. Qxf5 {[%clk 0:02:00]}  Nxf5 {[%clk 0:02:09]} 17. Bf2 {[%clk 0:02:01]}  Na6 {[%clk 0:02:06]} 18. e4 {[%clk 0:01:57]}  dxe4 {[%clk 0:02:01]} 19. Nxe4 {[%clk 0:01:57]}  Rfd8 {[%clk 0:01:58]} 20. a3 {[%clk 0:01:56]}  Nc7 {[%clk 0:01:49]} 21. Rxd8+ {[%clk 0:01:49]}  Rxd8 {[%clk 0:01:45]} 22. Bxa7 {[%clk 0:01:50]}  Nb5 {[%clk 0:01:43]} 23. Bb6 {[%clk 0:01:41]}  Rd5 {[%clk 0:01:40]} 24. Rd1 {[%clk 0:01:38]}  Nbd4 {[%clk 0:01:35]} 25. g4 {[%clk 0:01:12]}  Ne2+ {[%clk 0:01:22]} 26. Kc2 {[%clk 0:01:11]}  Ne7 {[%clk 0:01:20]} 27. Be3 {[%clk 0:01:03]}  h5 {[%clk 0:01:11]} 28. h3 {[%clk 0:01:02]}  h4 {[%clk 0:00:59]} 29. Rd2 {[%clk 0:00:57]}  Ng3 {[%clk 0:00:53]} 30. Nxg3 {[%clk 0:00:43]}  hxg3 {[%clk 0:00:53]} 31. Rg2 {[%clk 0:00:39]}  Rd7 {[%clk 0:00:47]} 32. Rxg3 {[%clk 0:00:39]}  Nd5 {[%clk 0:00:47]} 33. Bd2 {[%clk 0:00:37]}  g5 {[%clk 0:00:37]} 34. f5 {[%clk 0:00:24]}  Re7 {[%clk 0:00:32]} 35. Bxg5 {[%clk 0:00:23]}  Rxe5 {[%clk 0:00:28]} 36. Rg2 {[%clk 0:00:20]}  Re1 {[%clk 0:00:23]} 37. Bd2 {[%clk 0:00:20]}  Rh1 {[%clk 0:00:20]} 38. Rg3 {[%clk 0:00:17]}  Rh2 {[%clk 0:00:19]} 39. Rd3 {[%clk 0:00:17]}  Kg7 {[%clk 0:00:19]} 40. Kd1 {[%clk 0:00:16]}  Rh1+ {[%clk 0:00:18]} 41. Ke2 {[%clk 0:00:16]}  Kf6 {[%clk 0:00:18]} 42. Kf2 {[%clk 0:00:16]}  Ke5 {[%clk 0:00:18]} 43. Kg2 {[%clk 0:00:15]}  Rb1 {[%clk 0:00:18]} 44. b4 {[%clk 0:00:12]}  Ke4 {[%clk 0:00:18]} 45. Rf3 {[%clk 0:00:06]}  Rb2 {[%clk 0:00:16]} 46. Rf2 {[%clk 0:00:07]}  Ne3+ {[%clk 0:00:13]} 47. Bxe3 {[%clk 0:00:06]}  Rb3 {[%clk 0:00:13]} 48. Bc5 {[%clk 0:00:06]}  Rxa3 {[%clk 0:00:14]} 49. h4 {[%clk 0:00:07]}  Ra8 {[%clk 0:00:11]} 50. h5 {[%clk 0:00:07]}  Rb8 {[%clk 0:00:10]} 51. Kg3 {[%clk 0:00:07]}  b6 {[%clk 0:00:10]} 52. Bd6 {[%clk 0:00:07]}  Rd8 {[%clk 0:00:10]} 53. Bf4 {[%clk 0:00:07]}  c5 {[%clk 0:00:10]} 54. bxc5 {[%clk 0:00:07]}  bxc5 {[%clk 0:00:11]} 55. h6 {[%clk 0:00:08]}  c4 {[%clk 0:00:11]} 56. h7 {[%clk 0:00:07]}  c3 {[%clk 0:00:11]} 57. Rh2 {[%clk 0:00:06]}  Rh8 {[%clk 0:00:09]} 58. Bc1 {[%clk 0:00:04]}  Kd3 {[%clk 0:00:09]} 59. Kf4 {[%clk 0:00:04]}  f6 {[%clk 0:00:08]} 60. g5 {[%clk 0:00:04]}  fxg5+ {[%clk 0:00:07]} 61. Kxg5 {[%clk 0:00:05]}  c2 {[%clk 0:00:07]} 62. Kg6 {[%clk 0:00:04]}  Rb8 {[%clk 0:00:04]} 63. h8=Q {[%clk 0:00:05]}  Rb6+ {[%clk 0:00:04]} 64. f6 {[%clk 0:00:05]}  Rb4 {[%clk 0:00:03]} 65. Qd8+ {[%clk 0:00:05]}  Kc3 {[%clk 0:00:03]} 66. Qc8+ {[%clk 0:00:05]}  Kb3 {[%clk 0:00:00]} 67. Rxc2 {[%clk 0:00:05]} 1-0


[Site "https://www.chess.com"]

[Event "Titled Tuesday Blitz November 14 Early 2023"]
[White "Kanyamarala, Trisha"]
[Black "Larina, Maria"]
[WhiteFideId "45004722"]
[BlackFideId "24113182"]
[WhiteElo "2488"]
[BlackElo "2286"]
[Result "1-0"]
[Round "8"]
[TimeControl "180+1"]
[Date "2023.11.14"]
[WhiteClock "0:00:36"]
[BlackClock "0:00:35"]
[Board "150"]

1. c4 {[%clk 0:02:56]}  e5 {[%clk 0:02:58]} 2. Nc3 {[%clk 0:02:55]}  f5 {[%clk 0:02:45]} 3. g3 {[%clk 0:02:55]}  Nf6 {[%clk 0:02:45]} 4. Bg2 {[%clk 0:02:55]}  d6 {[%clk 0:02:45]} 5. Nf3 {[%clk 0:02:55]}  Nc6 {[%clk 0:02:45]} 6. d3 {[%clk 0:02:50]}  Be7 {[%clk 0:02:45]} 7. O-O {[%clk 0:02:50]}  O-O {[%clk 0:02:45]} 8. Rb1 {[%clk 0:02:49]}  a5 {[%clk 0:02:45]} 9. a3 {[%clk 0:02:49]}  Qe8 {[%clk 0:02:45]} 10. b4 {[%clk 0:02:48]}  axb4 {[%clk 0:02:46]} 11. axb4 {[%clk 0:02:47]}  Bd8 {[%clk 0:02:43]} 12. b5 {[%clk 0:02:42]}  Ne7 {[%clk 0:02:43]} 13. c5 {[%clk 0:02:32]}  Ng6 {[%clk 0:02:29]} 14. d4 {[%clk 0:02:12]}  e4 {[%clk 0:02:28]} 15. Ng5 {[%clk 0:02:10]}  d5 {[%clk 0:02:25]} 16. Qb3 {[%clk 0:02:06]}  c6 {[%clk 0:02:24]} 17. f3 {[%clk 0:01:58]}  h6 {[%clk 0:02:22]} 18. Nh3 {[%clk 0:01:57]}  Bd7 {[%clk 0:02:09]} 19. Nf4 {[%clk 0:01:54]}  Nxf4 {[%clk 0:02:08]} 20. Bxf4 {[%clk 0:01:54]}  Nh5 {[%clk 0:01:47]} 21. fxe4 {[%clk 0:01:45]}  Nxf4 {[%clk 0:01:45]} 22. Rxf4 {[%clk 0:01:44]}  fxe4 {[%clk 0:01:39]} 23. Rxf8+ {[%clk 0:01:43]}  Qxf8 {[%clk 0:01:39]} 24. Nxe4 {[%clk 0:01:36]}  Qf7 {[%clk 0:01:28]} 25. Nd6 {[%clk 0:01:32]}  Qg6 {[%clk 0:01:27]} 26. Rf1 {[%clk 0:01:22]}  Bf6 {[%clk 0:01:16]} 27. bxc6 {[%clk 0:01:15]}  bxc6 {[%clk 0:01:13]} 28. Bxd5+ {[%clk 0:01:12]}  Kh8 {[%clk 0:01:00]} 29. Be4 {[%clk 0:00:56]}  Bxd4+ {[%clk 0:00:57]} 30. Kh1 {[%clk 0:00:56]}  Qe6 {[%clk 0:00:53]} 31. Qd3 {[%clk 0:00:41]}  Bxc5 {[%clk 0:00:46]} 32. Nf7+ {[%clk 0:00:40]}  Kg8 {[%clk 0:00:46]} 33. Bh7+ {[%clk 0:00:39]}  Kf8 {[%clk 0:00:41]} 34. Ng5+ {[%clk 0:00:39]}  Ke7 {[%clk 0:00:37]} 35. Nxe6 {[%clk 0:00:39]}  Bxe6 {[%clk 0:00:38]} 36. Qc3 {[%clk 0:00:36]}  Bd5+ {[%clk 0:00:37]} 37. e4 {[%clk 0:00:36]}  Ra3 {[%clk 0:00:35]} 38. Qxc5+ {[%clk 0:00:36]} 1-0


[Site "https://www.chess.com"]

[Event "Titled Tuesday Blitz November 14 Early 2023"]
[White "Mikhalsky, Vladimir"]
[Black "Skibbe, Willi"]
[WhiteFideId "14144352"]
[BlackFideId "4682190"]
[WhiteElo "2424"]
[BlackElo "2237"]
[Result "1-0"]
[Round "8"]
[TimeControl "180+1"]
[Date "2023.11.14"]
[WhiteClock "0:00:06"]
[BlackClock "0:00:00"]
[Board "153"]

1. d4 {[%clk 0:02:58]}  d5 {[%clk 0:02:57]} 2. c4 {[%clk 0:02:57]}  e6 {[%clk 0:02:57]} 3. Nf3 {[%clk 0:02:56]}  c6 {[%clk 0:02:55]} 4. g3 {[%clk 0:02:56]}  dxc4 {[%clk 0:02:52]} 5. Bg2 {[%clk 0:02:54]}  b5 {[%clk 0:02:44]} 6. O-O {[%clk 0:02:54]}  Bb7 {[%clk 0:02:43]} 7. a4 {[%clk 0:02:54]}  Nd7 {[%clk 0:02:42]} 8. b3 {[%clk 0:02:53]}  cxb3 {[%clk 0:02:41]} 9. Qxb3 {[%clk 0:02:53]}  b4 {[%clk 0:02:37]} 10. a5 {[%clk 0:02:52]}  Ba6 {[%clk 0:02:32]} 11. Re1 {[%clk 0:02:36]}  Ngf6 {[%clk 0:02:28]} 12. Bd2 {[%clk 0:02:28]}  Rb8 {[%clk 0:02:23]} 13. Bf4 {[%clk 0:02:28]}  Rc8 {[%clk 0:02:20]} 14. e4 {[%clk 0:02:25]}  Be7 {[%clk 0:02:19]} 15. Nbd2 {[%clk 0:02:19]}  O-O {[%clk 0:02:18]} 16. Nc4 {[%clk 0:02:19]}  c5 {[%clk 0:02:06]} 17. Nd6 {[%clk 0:01:52]}  Rc6 {[%clk 0:01:54]} 18. d5 {[%clk 0:01:43]}  exd5 {[%clk 0:01:36]} 19. exd5 {[%clk 0:01:43]}  Rxd6 {[%clk 0:01:34]} 20. Rxe7 {[%clk 0:01:42]}  Rxd5 {[%clk 0:01:21]} 21. Rae1 {[%clk 0:01:36]}  Rd3 {[%clk 0:01:16]} 22. Qa4 {[%clk 0:01:34]}  Bb7 {[%clk 0:01:08]} 23. Ng5 {[%clk 0:01:04]}  Bxg2 {[%clk 0:01:06]} 24. Kxg2 {[%clk 0:01:04]}  h6 {[%clk 0:00:56]} 25. Nf3 {[%clk 0:00:57]}  Qa8 {[%clk 0:00:54]} 26. R1e3 {[%clk 0:00:52]}  Rxe3 {[%clk 0:00:49]} 27. Bxe3 {[%clk 0:00:52]}  Qd5 {[%clk 0:00:49]} 28. h3 {[%clk 0:00:37]}  Re8 {[%clk 0:00:31]} 29. Rxe8+ {[%clk 0:00:35]}  Nxe8 {[%clk 0:00:32]} 30. Bxc5 {[%clk 0:00:30]}  Nef6 {[%clk 0:00:26]} 31. Bxb4 {[%clk 0:00:27]}  Ne5 {[%clk 0:00:22]} 32. Qa3 {[%clk 0:00:27]}  a6 {[%clk 0:00:17]} 33. Qe3 {[%clk 0:00:17]}  Nfd7 {[%clk 0:00:17]} 34. Bc3 {[%clk 0:00:16]}  Qxf3+ {[%clk 0:00:14]} 35. Qxf3 {[%clk 0:00:15]}  Nxf3 {[%clk 0:00:15]} 36. Kxf3 {[%clk 0:00:16]}  f6 {[%clk 0:00:15]} 37. Ke4 {[%clk 0:00:15]}  Kf7 {[%clk 0:00:14]} 38. Kd5 {[%clk 0:00:16]}  Ke7 {[%clk 0:00:14]} 39. Bb4+ {[%clk 0:00:14]}  Kd8 {[%clk 0:00:13]} 40. Kc6 {[%clk 0:00:14]}  Kc8 {[%clk 0:00:13]} 41. f4 {[%clk 0:00:13]}  Nb8+ {[%clk 0:00:12]} 42. Kb6 {[%clk 0:00:13]}  Kd7 {[%clk 0:00:12]} 43. Bf8 {[%clk 0:00:12]}  h5 {[%clk 0:00:07]} 44. Bxg7 {[%clk 0:00:12]}  Ke6 {[%clk 0:00:08]} 45. g4 {[%clk 0:00:11]}  hxg4 {[%clk 0:00:07]} 46. hxg4 {[%clk 0:00:11]}  Kf7 {[%clk 0:00:07]} 47. Bh6 {[%clk 0:00:06]}  Kg6 {[%clk 0:00:07]} 48. g5 {[%clk 0:00:06]}  fxg5 {[%clk 0:00:08]} 49. Bxg5 {[%clk 0:00:06]}  Kf5 {[%clk 0:00:07]} 50. Kb7 {[%clk 0:00:06]}  Nd7 {[%clk 0:00:07]} 51. Kxa6 {[%clk 0:00:06]}  Ke6 {[%clk 0:00:05]} 52. Kb7 {[%clk 0:00:04]}  Nc5+ {[%clk 0:00:06]} 53. Kb6 {[%clk 0:00:05]}  Nd7+ {[%clk 0:00:05]} 54. Kc6 {[%clk 0:00:05]}  Nb8+ {[%clk 0:00:05]} 55. Kb7 {[%clk 0:00:05]}  Nd7 {[%clk 0:00:04]} 56. a6 {[%clk 0:00:05]}  Nc5+ {[%clk 0:00:04]} 57. Kb6 {[%clk 0:00:05]}  Nd7+ {[%clk 0:00:00]} 58. Kc7 {[%clk 0:00:06]} 1-0


[Site "https://www.chess.com"]